[Event "Titled Tuesday Blitz May 23 Late 2023"]
[White "Terry, Renato"]
[Black "Arabidze, Meri"]
[WhiteFideId "3803457"]
[BlackFideId "13604040"]
[WhiteElo "2575"]
[BlackElo "2405"]
[Result "1-0"]
[Round "04"]
[TimeControl "180+2"]
[Date "2023.05.23"]
[WhiteClock "0:00:38"]
[BlackClock "0:00:00"]

1. e4 {[%clk 0:03:00]}  c5 {[%clk 0:02:59]} 2. Nf3 {[%clk 0:03:00]}  e6 {[%clk 0:03:00]} 3. Nc3 {[%clk 0:03:00]}  a6 {[%clk 0:02:58]} 4. g3 {[%clk 0:03:00]}  Nc6 {[%clk 0:02:58]} 5. Bg2 {[%clk 0:03:00]}  b5 {[%clk 0:02:56]} 6. O-O {[%clk 0:02:56]}  b4 {[%clk 0:02:56]} 7. Ne2 {[%clk 0:02:53]}  Nf6 {[%clk 0:02:50]} 8. e5 {[%clk 0:02:51]}  Nd5 {[%clk 0:02:50]} 9. c4 {[%clk 0:02:49]}  bxc3 {[%clk 0:02:45]} 10. dxc3 {[%clk 0:02:47]}  Be7 {[%clk 0:02:41]} 11. c4 {[%clk 0:02:47]}  Nb6 {[%clk 0:02:40]} 12. b3 {[%clk 0:02:46]}  O-O {[%clk 0:02:36]} 13. Nf4 {[%clk 0:02:46]}  Bb7 {[%clk 0:02:29]} 14. Nh5 {[%clk 0:02:35]}  d5 {[%clk 0:02:18]} 15. exd6 {[%clk 0:02:19]}  Qxd6 {[%clk 0:02:17]} 16. Qe2 {[%clk 0:02:20]}  Nd4 {[%clk 0:01:59]} 17. Nxd4 {[%clk 0:02:18]}  Bxg2 {[%clk 0:02:00]} 18. Nf5 {[%clk 0:02:18]}  exf5 {[%clk 0:01:56]} 19. Kxg2 {[%clk 0:02:17]}  Rfe8 {[%clk 0:01:44]} 20. Qf3 {[%clk 0:02:00]}  g6 {[%clk 0:01:43]} 21. Nf4 {[%clk 0:01:42]}  Bf6 {[%clk 0:01:42]} 22. Rb1 {[%clk 0:01:42]}  Rad8 {[%clk 0:01:38]} 23. Be3 {[%clk 0:01:36]}  Bd4 {[%clk 0:01:33]} 24. Rbd1 {[%clk 0:01:36]}  Nd7 {[%clk 0:01:27]} 25. Nd5 {[%clk 0:01:32]}  Bxe3 {[%clk 0:01:14]} 26. Nxe3 {[%clk 0:01:29]}  Qe6 {[%clk 0:01:08]} 27. Nd5 {[%clk 0:01:28]}  Ne5 {[%clk 0:00:59]} 28. Qc3 {[%clk 0:01:28]}  Qc6 {[%clk 0:00:46]} 29. Rfe1 {[%clk 0:01:25]}  f6 {[%clk 0:00:39]} 30. f4 {[%clk 0:01:16]}  Nf7 {[%clk 0:00:11]} 31. Qxf6 {[%clk 0:01:03]}  Rxe1 {[%clk 0:00:09]} 32. Rxe1 {[%clk 0:00:54]}  Qxf6 {[%clk 0:00:08]} 33. Nxf6+ {[%clk 0:00:54]}  Kg7 {[%clk 0:00:09]} 34. Nd5 {[%clk 0:00:53]}  a5 {[%clk 0:00:08]} 35. Re7 {[%clk 0:00:53]}  a4 {[%clk 0:00:08]} 36. bxa4 {[%clk 0:00:48]}  Rb8 {[%clk 0:00:07]} 37. Re2 {[%clk 0:00:41]}  Nd6 {[%clk 0:00:07]} 38. Re7+ {[%clk 0:00:40]}  Kh6 {[%clk 0:00:03]} 39. Nf6 {[%clk 0:00:40]}  Rh8 {[%clk 0:00:03]} 40. a5 {[%clk 0:00:38]}  Nxc4 {[%clk 0:00:03]} 41. a6 {[%clk 0:00:39]}  g5 {[%clk 0:00:04]} 42. a7 {[%clk 0:00:37]}  Kg6 {[%clk 0:00:04]} 43. Ne8 {[%clk 0:00:35]}  Nb6 {[%clk 0:00:03]} 44. Re6+ {[%clk 0:00:36]}  Kf7 {[%clk 0:00:03]} 45. Rxb6 {[%clk 0:00:37]}  Rxe8 {[%clk 0:00:03]} 46. Rb8 {[%clk 0:00:37]}  Re2+ {[%clk 0:00:02]} 47. Kf1 {[%clk 0:00:38]}  Rxa2 {[%clk 0:00:00]} 48. a8=Q {[%clk 0:00:38]} 1-0


[Site "https://www.chess.com"]

[Event "Titled Tuesday Blitz May 23 Late 2023"]
[White "Eugene, Floryan"]
[Black "Zhigalko, Sergei"]
[WhiteFideId "20694784"]
[BlackFideId "13502956"]
[WhiteElo "2369"]
[BlackElo "2626"]
[Result "0-1"]
[Round "04"]
[TimeControl "180+2"]
[Date "2023.05.23"]
[WhiteClock "0:00:04"]
[BlackClock "0:00:07"]

1. d4 {[%clk 0:03:00]}  Nf6 {[%clk 0:03:00]} 2. c4 {[%clk 0:03:00]}  e6 {[%clk 0:03:00]} 3. g4 {[%clk 0:03:00]}  h6 {[%clk 0:02:41]} 4. Nc3 {[%clk 0:03:00]}  d5 {[%clk 0:02:41]} 5. g5 {[%clk 0:02:59]}  hxg5 {[%clk 0:02:41]} 6. Bxg5 {[%clk 0:03:00]}  Be7 {[%clk 0:02:41]} 7. Nf3 {[%clk 0:02:55]}  Ne4 {[%clk 0:02:30]} 8. Bxe7 {[%clk 0:02:47]}  Qxe7 {[%clk 0:02:30]} 9. e3 {[%clk 0:02:43]}  Nc6 {[%clk 0:02:25]} 10. Bd3 {[%clk 0:02:22]}  Nxc3 {[%clk 0:02:20]} 11. bxc3 {[%clk 0:02:23]}  Bd7 {[%clk 0:02:16]} 12. Rg1 {[%clk 0:02:17]}  g6 {[%clk 0:02:16]} 13. Rb1 {[%clk 0:02:14]}  b6 {[%clk 0:02:09]} 14. Qc2 {[%clk 0:01:47]}  Qf6 {[%clk 0:01:48]} 15. Ke2 {[%clk 0:01:26]}  O-O-O {[%clk 0:01:28]} 16. cxd5 {[%clk 0:00:24]}  exd5 {[%clk 0:01:29]} 17. Qa4 {[%clk 0:00:21]}  Qxf3+ {[%clk 0:00:36]} 18. Kxf3 {[%clk 0:00:19]}  Ne5+ {[%clk 0:00:37]} 19. dxe5 {[%clk 0:00:19]}  Bxa4 {[%clk 0:00:38]} 20. e6 {[%clk 0:00:17]}  fxe6 {[%clk 0:00:38]} 21. Rxg6 {[%clk 0:00:17]}  Rxh2 {[%clk 0:00:39]} 22. Rxe6 {[%clk 0:00:15]}  Rf8+ {[%clk 0:00:38]} 23. Kg3 {[%clk 0:00:15]}  Rhxf2 {[%clk 0:00:35]} 24. Rh1 {[%clk 0:00:13]}  R8f3+ {[%clk 0:00:30]} 25. Kh4 {[%clk 0:00:13]}  Rxa2 {[%clk 0:00:19]} 26. Rg1 {[%clk 0:00:10]}  Rh2+ {[%clk 0:00:17]} 27. Kg5 {[%clk 0:00:09]}  Rh8 {[%clk 0:00:15]} 28. Kg4 {[%clk 0:00:06]}  Rhf8 {[%clk 0:00:12]} 29. Kh4 {[%clk 0:00:05]}  Bd7 {[%clk 0:00:11]} 30. Re7 {[%clk 0:00:05]}  Rh3+ {[%clk 0:00:10]} 31. Kg5 {[%clk 0:00:06]}  Kd8 {[%clk 0:00:07]} 32. Rxd7+ {[%clk 0:00:05]}  Kxd7 {[%clk 0:00:08]} 33. Bf5+ {[%clk 0:00:06]}  Rxf5+ {[%clk 0:00:08]} 34. Kxf5 {[%clk 0:00:07]}  Rxe3 {[%clk 0:00:08]} 35. Rg6 {[%clk 0:00:06]}  Rxc3 {[%clk 0:00:07]} 36. Ke5 {[%clk 0:00:07]}  Re3+ {[%clk 0:00:07]} 37. Kxd5 {[%clk 0:00:07]}  c6+ {[%clk 0:00:07]} 38. Kd4 {[%clk 0:00:07]}  Re7 {[%clk 0:00:07]} 39. Rh6 {[%clk 0:00:07]}  Kc7 {[%clk 0:00:07]} 40. Kc4 {[%clk 0:00:08]}  Rd7 {[%clk 0:00:08]} 41. Rh5 {[%clk 0:00:07]}  a5 {[%clk 0:00:08]} 42. Rh6 {[%clk 0:00:07]}  b5+ {[%clk 0:00:08]} 43. Kc3 {[%clk 0:00:07]}  Kb6 {[%clk 0:00:08]} 44. Rh5 {[%clk 0:00:07]}  Rd5 {[%clk 0:00:08]} 45. Rh4 {[%clk 0:00:07]}  a4 {[%clk 0:00:09]} 46. Rh8 {[%clk 0:00:04]}  Kc5 {[%clk 0:00:09]} 47. Rh4 {[%clk 0:00:04]}  b4+ {[%clk 0:00:08]} 48. Kc2 {[%clk 0:00:03]}  Kb5 {[%clk 0:00:08]} 49. Kb2 {[%clk 0:00:04]}  c5 {[%clk 0:00:08]} 50. Rh8 {[%clk 0:00:04]}  a3+ {[%clk 0:00:09]} 51. Kb3 {[%clk 0:00:04]}  Rd3+ {[%clk 0:00:09]} 52. Kc2 {[%clk 0:00:04]}  Rc3+ {[%clk 0:00:09]} 53. Kb1 {[%clk 0:00:05]}  Kc4 {[%clk 0:00:10]} 54. Rh2 {[%clk 0:00:04]}  Rb3+ {[%clk 0:00:08]} 55. Ka1 {[%clk 0:00:04]}  Rd3 {[%clk 0:00:08]} 56. Rc2+ {[%clk 0:00:04]}  Kb5 {[%clk 0:00:08]} 57. Rc1 {[%clk 0:00:04]}  b3 {[%clk 0:00:08]} 58. Rh1 {[%clk 0:00:05]}  Kb4 {[%clk 0:00:08]} 59. Rg1 {[%clk 0:00:04]}  c4 {[%clk 0:00:08]} 60. Kb1 {[%clk 0:00:04]}  Rd2 {[%clk 0:00:09]} 61. Kc1 {[%clk 0:00:04]}  Rc2+ {[%clk 0:00:08]} 62. Kb1 {[%clk 0:00:04]}  Rb2+ {[%clk 0:00:08]} 63. Ka1 {[%clk 0:00:05]}  Re2 {[%clk 0:00:09]} 64. Kb1 {[%clk 0:00:04]}  c3 {[%clk 0:00:08]} 65. Rg5 {[%clk 0:00:04]}  Re1# {[%clk 0:00:07]} 0-1


[Site "https://www.chess.com"]

[Event "Titled Tuesday Blitz May 23 Late 2023"]
[White "Ambartsumova, Karina"]
[Black "Moroni, Luca Jr"]
[WhiteFideId "4166299"]
[BlackFideId "865834"]
[WhiteElo "2240"]
[BlackElo "2569"]
[Result "0-1"]
[Round "04"]
[TimeControl "180+2"]
[Date "2023.05.23"]
[WhiteClock "0:00:00"]
[BlackClock "0:00:06"]

1. e4 {[%clk 0:03:00]}  b5 {[%clk 0:02:58]} 2. Bxb5 {[%clk 0:02:52]}  Bb7 {[%clk 0:02:58]} 3. Nc3 {[%clk 0:02:52]}  f5 {[%clk 0:02:54]} 4. d3 {[%clk 0:02:36]}  Nf6 {[%clk 0:02:48]} 5. Qe2 {[%clk 0:02:34]}  e5 {[%clk 0:02:45]} 6. Nf3 {[%clk 0:02:32]}  fxe4 {[%clk 0:02:44]} 7. dxe4 {[%clk 0:02:32]}  Bb4 {[%clk 0:02:43]} 8. Bd2 {[%clk 0:02:16]}  Qe7 {[%clk 0:02:35]} 9. O-O {[%clk 0:02:12]}  Nc6 {[%clk 0:02:32]} 10. Nd5 {[%clk 0:01:57]}  Nxd5 {[%clk 0:02:15]} 11. exd5 {[%clk 0:01:58]}  Bxd2 {[%clk 0:02:14]} 12. dxc6 {[%clk 0:01:20]}  dxc6 {[%clk 0:02:15]} 13. Ba6 {[%clk 0:01:20]}  Bxa6 {[%clk 0:01:37]} 14. Qxa6 {[%clk 0:01:21]}  Rd8 {[%clk 0:01:37]} 15. Rad1 {[%clk 0:01:06]}  Bf4 {[%clk 0:01:32]} 16. Qxc6+ {[%clk 0:01:05]}  Kf7 {[%clk 0:01:32]} 17. g3 {[%clk 0:01:02]}  e4 {[%clk 0:01:26]} 18. Qc4+ {[%clk 0:00:51]}  Kf6 {[%clk 0:01:13]} 19. Nd4 {[%clk 0:00:50]}  Rd6 {[%clk 0:00:45]} 20. gxf4 {[%clk 0:00:38]}  Qd7 {[%clk 0:00:43]} 21. Qc3 {[%clk 0:00:32]}  Kf7 {[%clk 0:00:41]} 22. Qb3+ {[%clk 0:00:20]}  Kf6 {[%clk 0:00:40]} 23. Qc3 {[%clk 0:00:13]}  Kf7 {[%clk 0:00:40]} 24. Qb3+ {[%clk 0:00:07]}  Ke7 {[%clk 0:00:37]} 25. c3 {[%clk 0:00:04]}  c5 {[%clk 0:00:33]} 26. Ne2 {[%clk 0:00:03]}  Rd3 {[%clk 0:00:23]} 27. Ng3 {[%clk 0:00:02]}  h5 {[%clk 0:00:22]} 28. Rde1 {[%clk 0:00:03]}  h4 {[%clk 0:00:19]} 29. Rxe4+ {[%clk 0:00:03]}  Kf6 {[%clk 0:00:17]} 30. Qc4 {[%clk 0:00:02]}  hxg3 {[%clk 0:00:16]} 31. hxg3 {[%clk 0:00:02]}  Qh3 {[%clk 0:00:15]} 32. Re6+ {[%clk 0:00:01]}  Qxe6 {[%clk 0:00:14]} 33. Qxd3 {[%clk 0:00:01]}  Qh3 {[%clk 0:00:12]} 34. Qd6+ {[%clk 0:00:02]}  Kf7 {[%clk 0:00:12]} 35. Qd5+ {[%clk 0:00:02]}  Kg6 {[%clk 0:00:10]} 36. Qg2 {[%clk 0:00:03]}  Qf5 {[%clk 0:00:08]} 37. Re1 {[%clk 0:00:03]}  Rd8 {[%clk 0:00:07]} 38. Qe4 {[%clk 0:00:03]}  Rd2 {[%clk 0:00:06]} 39. Qxf5+ {[%clk 0:00:03]}  Kxf5 {[%clk 0:00:07]} 40. Re5+ {[%clk 0:00:04]}  Kg4 {[%clk 0:00:08]} 41. Rxc5 {[%clk 0:00:03]}  Kf3 {[%clk 0:00:08]} 42. Re5 {[%clk 0:00:02]}  Rxf2 {[%clk 0:00:08]} 43. Rb5 {[%clk 0:00:00]}  Rc2 {[%clk 0:00:06]} 0-1


[Site "https://www.chess.com"]

[Event "Titled Tuesday Blitz May 23 Late 2023"]
[White "Gubajdullin, Alexei"]
[Black "Panesar Vedant"]
[WhiteFideId "4141202"]
[BlackFideId "35033018"]
[WhiteElo "2279"]
[BlackElo "2347"]
[Result "1-0"]
[Round "04"]
[TimeControl "180+2"]
[Date "2023.05.23"]
[WhiteClock "0:00:21"]
[BlackClock "0:00:04"]

1. d4 {[%clk 0:02:58]}  Nf6 {[%clk 0:02:59]} 2. Nf3 {[%clk 0:02:58]}  g6 {[%clk 0:02:58]} 3. Bf4 {[%clk 0:02:59]}  Bg7 {[%clk 0:02:57]} 4. e3 {[%clk 0:02:59]}  O-O {[%clk 0:02:58]} 5. Be2 {[%clk 0:02:59]}  c5 {[%clk 0:02:57]} 6. O-O {[%clk 0:02:58]}  d6 {[%clk 0:02:57]} 7. c3 {[%clk 0:02:57]}  b6 {[%clk 0:02:57]} 8. h3 {[%clk 0:02:57]}  Bb7 {[%clk 0:02:57]} 9. a4 {[%clk 0:02:57]}  Nbd7 {[%clk 0:02:56]} 10. Qb3 {[%clk 0:02:56]}  Qc7 {[%clk 0:02:52]} 11. Rd1 {[%clk 0:02:55]}  a6 {[%clk 0:02:46]} 12. d5 {[%clk 0:02:55]}  Rfc8 {[%clk 0:02:40]} 13. c4 {[%clk 0:02:55]}  b5 {[%clk 0:02:34]} 14. axb5 {[%clk 0:02:53]}  axb5 {[%clk 0:02:35]} 15. Rxa8 {[%clk 0:02:47]}  Rxa8 {[%clk 0:02:35]} 16. Qxb5 {[%clk 0:02:33]}  Ba6 {[%clk 0:02:25]} 17. Qc6 {[%clk 0:02:31]}  Qxc6 {[%clk 0:02:21]} 18. dxc6 {[%clk 0:02:31]}  Nb6 {[%clk 0:02:15]} 19. b4 {[%clk 0:02:19]}  cxb4 {[%clk 0:02:08]} 20. c5 {[%clk 0:02:02]}  Nc8 {[%clk 0:02:01]} 21. Bxa6 {[%clk 0:01:42]}  Rxa6 {[%clk 0:02:02]} 22. cxd6 {[%clk 0:01:40]}  exd6 {[%clk 0:01:59]} 23. Bxd6 {[%clk 0:01:38]}  Rxc6 {[%clk 0:01:13]} 24. Bxb4 {[%clk 0:01:37]}  h6 {[%clk 0:01:13]} 25. Nc3 {[%clk 0:01:30]}  Nb6 {[%clk 0:01:05]} 26. Nd4 {[%clk 0:01:23]}  Rc4 {[%clk 0:01:03]} 27. Ba5 {[%clk 0:01:23]}  Nbd5 {[%clk 0:01:01]} 28. Nxd5 {[%clk 0:01:22]}  Nxd5 {[%clk 0:01:02]} 29. Nf3 {[%clk 0:01:16]}  Rc5 {[%clk 0:00:59]} 30. Be1 {[%clk 0:01:12]}  h5 {[%clk 0:00:57]} 31. Kf1 {[%clk 0:01:08]}  Bf6 {[%clk 0:00:55]} 32. Rd3 {[%clk 0:01:06]}  Nc3 {[%clk 0:00:51]} 33. Bxc3 {[%clk 0:01:05]}  Bxc3 {[%clk 0:00:52]} 34. h4 {[%clk 0:01:04]}  Bf6 {[%clk 0:00:51]} 35. g3 {[%clk 0:01:04]}  Kg7 {[%clk 0:00:51]} 36. Kg2 {[%clk 0:01:03]}  Rc2 {[%clk 0:00:51]} 37. Nd2 {[%clk 0:01:03]}  Ra2 {[%clk 0:00:50]} 38. Ne4 {[%clk 0:01:03]}  Ra7 {[%clk 0:00:46]} 39. Kf3 {[%clk 0:01:01]}  Ra2 {[%clk 0:00:46]} 40. Rd6 {[%clk 0:01:01]}  Be5 {[%clk 0:00:42]} 41. Rc6 {[%clk 0:01:01]}  Ra7 {[%clk 0:00:37]} 42. Ng5 {[%clk 0:00:57]}  Bf6 {[%clk 0:00:35]} 43. Ne4 {[%clk 0:00:56]}  Be5 {[%clk 0:00:36]} 44. Rc5 {[%clk 0:00:56]}  Bf6 {[%clk 0:00:35]} 45. Rd5 {[%clk 0:00:56]}  Re7 {[%clk 0:00:34]} 46. Nd6 {[%clk 0:00:55]}  Re6 {[%clk 0:00:33]} 47. e4 {[%clk 0:00:51]}  Be7 {[%clk 0:00:32]} 48. Nc4 {[%clk 0:00:51]}  Bf6 {[%clk 0:00:31]} 49. e5 {[%clk 0:00:51]}  Be7 {[%clk 0:00:30]} 50. Nd2 {[%clk 0:00:50]}  f6 {[%clk 0:00:26]} 51. exf6+ {[%clk 0:00:47]}  Rxf6+ {[%clk 0:00:27]} 52. Kg2 {[%clk 0:00:47]}  Re6 {[%clk 0:00:21]} 53. Rd7 {[%clk 0:00:46]}  Kf6 {[%clk 0:00:17]} 54. Kf3 {[%clk 0:00:46]}  Kf7 {[%clk 0:00:10]} 55. Ne4 {[%clk 0:00:45]}  Ke8 {[%clk 0:00:10]} 56. Rb7 {[%clk 0:00:44]}  Ra6 {[%clk 0:00:10]} 57. Kf4 {[%clk 0:00:44]}  Ra2 {[%clk 0:00:09]} 58. Ke5 {[%clk 0:00:43]}  Ra5+ {[%clk 0:00:09]} 59. Ke6 {[%clk 0:00:43]}  Ra6+ {[%clk 0:00:09]} 60. Kd5 {[%clk 0:00:43]}  Ra5+ {[%clk 0:00:10]} 61. Ke6 {[%clk 0:00:43]}  Ra6+ {[%clk 0:00:11]} 62. Ke5 {[%clk 0:00:44]}  Ra5+ {[%clk 0:00:11]} 63. Kf4 {[%clk 0:00:44]}  Rf5+ {[%clk 0:00:12]} 64. Ke3 {[%clk 0:00:43]}  Rd5 {[%clk 0:00:12]} 65. Ke2 {[%clk 0:00:43]}  Re5 {[%clk 0:00:12]} 66. Kd3 {[%clk 0:00:42]}  Rd5+ {[%clk 0:00:13]} 67. Kc4 {[%clk 0:00:42]}  Re5 {[%clk 0:00:13]} 68. Kd4 {[%clk 0:00:41]}  Ra5 {[%clk 0:00:14]} 69. f4 {[%clk 0:00:40]}  Rf5 {[%clk 0:00:13]} 70. Kd3 {[%clk 0:00:36]}  Ra5 {[%clk 0:00:13]} 71. Rb3 {[%clk 0:00:35]}  Rd5+ {[%clk 0:00:13]} 72. Ke3 {[%clk 0:00:36]}  Ra5 {[%clk 0:00:14]} 73. Kf3 {[%clk 0:00:36]}  Rd5 {[%clk 0:00:14]} 74. Rc3 {[%clk 0:00:34]}  Ra5 {[%clk 0:00:14]} 75. Re3 {[%clk 0:00:34]}  Kf7 {[%clk 0:00:13]} 76. Rd3 {[%clk 0:00:34]}  Ke8 {[%clk 0:00:13]} 77. Nc3 {[%clk 0:00:33]}  Ra3 {[%clk 0:00:13]} 78. Ke4 {[%clk 0:00:33]}  Kf7 {[%clk 0:00:12]} 79. Nd5 {[%clk 0:00:33]}  Ra4+ {[%clk 0:00:12]} 80. Kf3 {[%clk 0:00:33]}  Ra5 {[%clk 0:00:10]} 81. Ne3 {[%clk 0:00:30]}  Bf6 {[%clk 0:00:09]} 82. Rb3 {[%clk 0:00:30]}  Ra7 {[%clk 0:00:09]} 83. Nd5 {[%clk 0:00:30]}  Be7 {[%clk 0:00:09]} 84. Rb6 {[%clk 0:00:29]}  Rd7 {[%clk 0:00:08]} 85. Ke4 {[%clk 0:00:29]}  Bd8 {[%clk 0:00:08]} 86. Rc6 {[%clk 0:00:27]}  Be7 {[%clk 0:00:09]} 87. Ke5 {[%clk 0:00:26]}  Bd8 {[%clk 0:00:07]} 88. Ra6 {[%clk 0:00:24]}  Rb7 {[%clk 0:00:07]} 89. f5 {[%clk 0:00:23]}  gxf5 {[%clk 0:00:07]} 90. Kxf5 {[%clk 0:00:23]}  Rb5 {[%clk 0:00:07]} 91. Rd6 {[%clk 0:00:21]}  Ba5 {[%clk 0:00:04]} 92. Rd7+ {[%clk 0:00:21]}  Ke8 {[%clk 0:00:04]} 93. Ke6 {[%clk 0:00:21]}  Be1 {[%clk 0:00:04]} 94. Nf6+ {[%clk 0:00:20]}  Kf8 {[%clk 0:00:04]} 95. Rf7# {[%clk 0:00:21]} 1-0


[Site "https://www.chess.com"]

[Event "Titled Tuesday Blitz May 23 Late 2023"]
[White "Pakleza, Zbigniew"]
[Black "Veiga, Jose Francisco R P Neves"]
[WhiteFideId "1119290"]
[BlackFideId "1930087"]
[WhiteElo "2410"]
[BlackElo "2320"]
[Result "1-0"]
[Round "04"]
[TimeControl "180+2"]
[Date "2023.05.23"]
[WhiteClock "0:00:06"]
[BlackClock "0:00:03"]

1. d4 {[%clk 0:03:00]}  Nf6 {[%clk 0:02:59]} 2. Nf3 {[%clk 0:03:01]}  e6 {[%clk 0:02:58]} 3. Bf4 {[%clk 0:03:01]}  c5 {[%clk 0:02:58]} 4. c3 {[%clk 0:03:01]}  b6 {[%clk 0:02:58]} 5. e3 {[%clk 0:03:01]}  Bb7 {[%clk 0:02:58]} 6. Nbd2 {[%clk 0:03:02]}  Be7 {[%clk 0:02:58]} 7. h3 {[%clk 0:03:01]}  O-O {[%clk 0:02:58]} 8. Bd3 {[%clk 0:03:02]}  Nc6 {[%clk 0:02:56]} 9. O-O {[%clk 0:03:01]}  cxd4 {[%clk 0:02:43]} 10. cxd4 {[%clk 0:03:01]}  d5 {[%clk 0:02:40]} 11. Qa4 {[%clk 0:02:56]}  a6 {[%clk 0:02:37]} 12. Rfc1 {[%clk 0:02:56]}  b5 {[%clk 0:02:36]} 13. Qd1 {[%clk 0:02:56]}  Qb6 {[%clk 0:02:35]} 14. a4 {[%clk 0:02:51]}  Rfc8 {[%clk 0:02:34]} 15. Nb3 {[%clk 0:02:32]}  Nb4 {[%clk 0:01:55]} 16. Be2 {[%clk 0:02:08]}  Rxc1 {[%clk 0:01:52]} 17. Rxc1 {[%clk 0:02:05]}  bxa4 {[%clk 0:01:52]} 18. Nc5 {[%clk 0:02:06]}  Bc6 {[%clk 0:01:45]} 19. Nxa4 {[%clk 0:01:56]}  Qa5 {[%clk 0:01:41]} 20. Nc5 {[%clk 0:01:49]}  Nd7 {[%clk 0:01:34]} 21. Nxd7 {[%clk 0:01:42]}  Bxd7 {[%clk 0:01:35]} 22. Rc7 {[%clk 0:01:42]}  Rd8 {[%clk 0:01:19]} 23. Qc1 {[%clk 0:01:35]}  Bf8 {[%clk 0:01:12]} 24. Qc3 {[%clk 0:01:15]}  Bb5 {[%clk 0:01:10]} 25. Bxb5 {[%clk 0:01:10]}  Qxb5 {[%clk 0:01:10]} 26. Ng5 {[%clk 0:00:52]}  Rd7 {[%clk 0:01:06]} 27. Rc8 {[%clk 0:00:52]}  h6 {[%clk 0:00:59]} 28. Nf3 {[%clk 0:00:44]}  f6 {[%clk 0:00:23]} 29. b3 {[%clk 0:00:23]}  Kf7 {[%clk 0:00:21]} 30. Rb8 {[%clk 0:00:21]}  Qc6 {[%clk 0:00:16]} 31. Rxf8+ {[%clk 0:00:19]}  Kxf8 {[%clk 0:00:13]} 32. Qxb4+ {[%clk 0:00:20]}  Kf7 {[%clk 0:00:14]} 33. Qa3 {[%clk 0:00:08]}  Rb7 {[%clk 0:00:13]} 34. b4 {[%clk 0:00:07]}  Qc4 {[%clk 0:00:10]} 35. Bd6 {[%clk 0:00:06]}  Rb5 {[%clk 0:00:06]} 36. Bc5 {[%clk 0:00:04]}  a5 {[%clk 0:00:06]} 37. bxa5 {[%clk 0:00:03]}  Rb1+ {[%clk 0:00:07]} 38. Kh2 {[%clk 0:00:04]}  Qf1 {[%clk 0:00:08]} 39. a6 {[%clk 0:00:03]}  Qh1+ {[%clk 0:00:07]} 40. Kg3 {[%clk 0:00:04]}  Ra1 {[%clk 0:00:07]} 41. Qb2 {[%clk 0:00:03]}  h5 {[%clk 0:00:03]} 42. Qb7+ {[%clk 0:00:01]}  Kg6 {[%clk 0:00:03]} 43. Qd7 {[%clk 0:00:02]}  h4+ {[%clk 0:00:04]} 44. Nxh4+ {[%clk 0:00:02]}  Kh7 {[%clk 0:00:05]} 45. Nf3 {[%clk 0:00:03]}  Qb1 {[%clk 0:00:04]} 46. Qxe6 {[%clk 0:00:03]}  Qg6+ {[%clk 0:00:04]} 47. Qg4 {[%clk 0:00:04]}  Rxa6 {[%clk 0:00:04]} 48. Qxg6+ {[%clk 0:00:04]}  Kxg6 {[%clk 0:00:05]} 49. Nh4+ {[%clk 0:00:04]}  Kf7 {[%clk 0:00:05]} 50. Nf3 {[%clk 0:00:05]}  g5 {[%clk 0:00:05]} 51. Ne1 {[%clk 0:00:05]}  Kg6 {[%clk 0:00:06]} 52. Nd3 {[%clk 0:00:05]}  Kf5 {[%clk 0:00:06]} 53. Nb4 {[%clk 0:00:06]}  Rd6 {[%clk 0:00:02]} 54. Bxd6 {[%clk 0:00:05]}  Ke4 {[%clk 0:00:02]} 55. Bc5 {[%clk 0:00:05]}  f5 {[%clk 0:00:02]} 56. Nc6 {[%clk 0:00:04]}  f4+ {[%clk 0:00:03]} 57. exf4 {[%clk 0:00:04]}  gxf4+ {[%clk 0:00:04]} 58. Kg4 {[%clk 0:00:05]}  f3 {[%clk 0:00:03]} 59. gxf3+ {[%clk 0:00:06]} 1-0


[Site "https://www.chess.com"]

[Event "Titled Tuesday Blitz May 23 Late 2023"]
[White "Sethuraman, S.P."]
[Black "Danielyan, Vahe"]
[WhiteFideId "5021596"]
[BlackFideId "13304828"]
[WhiteElo "2543"]
[BlackElo "2423"]
[Result "1-0"]
[Round "04"]
[TimeControl "180+2"]
[Date "2023.05.23"]
[WhiteClock "0:00:15"]
[BlackClock "0:00:00"]

1. c4 {[%clk 0:03:00]}  Nf6 {[%clk 0:02:58]} 2. Nf3 {[%clk 0:03:00]}  g6 {[%clk 0:02:58]} 3. d4 {[%clk 0:03:00]}  Bg7 {[%clk 0:02:58]} 4. Nc3 {[%clk 0:03:00]}  d5 {[%clk 0:02:58]} 5. h4 {[%clk 0:02:59]}  O-O {[%clk 0:02:55]} 6. h5 {[%clk 0:02:56]}  dxc4 {[%clk 0:02:50]} 7. hxg6 {[%clk 0:02:55]}  hxg6 {[%clk 0:02:49]} 8. e4 {[%clk 0:02:55]}  Bg4 {[%clk 0:02:49]} 9. Bxc4 {[%clk 0:02:49]}  c5 {[%clk 0:02:49]} 10. d5 {[%clk 0:02:46]}  Nbd7 {[%clk 0:02:45]} 11. Be2 {[%clk 0:02:44]}  c4 {[%clk 0:02:16]} 12. Bf4 {[%clk 0:02:38]}  b5 {[%clk 0:02:14]} 13. a3 {[%clk 0:02:33]}  Nc5 {[%clk 0:02:09]} 14. e5 {[%clk 0:02:26]}  Nh5 {[%clk 0:02:08]} 15. Be3 {[%clk 0:02:26]}  Nd3+ {[%clk 0:02:01]} 16. Bxd3 {[%clk 0:02:25]}  cxd3 {[%clk 0:02:01]} 17. Qxd3 {[%clk 0:02:22]}  Rc8 {[%clk 0:02:00]} 18. Nh4 {[%clk 0:01:55]}  Qa5 {[%clk 0:01:07]} 19. Bd2 {[%clk 0:01:45]}  Qc7 {[%clk 0:00:56]} 20. e6 {[%clk 0:01:38]}  Qe5+ {[%clk 0:00:46]} 21. Kf1 {[%clk 0:01:10]}  Nf4 {[%clk 0:00:43]} 22. Qg3 {[%clk 0:01:02]}  Rxc3 {[%clk 0:00:08]} 23. Bxc3 {[%clk 0:00:58]}  Qe2+ {[%clk 0:00:05]} 24. Kg1 {[%clk 0:00:58]}  fxe6 {[%clk 0:00:06]} 25. Bxg7 {[%clk 0:00:51]}  Kxg7 {[%clk 0:00:06]} 26. Qc3+ {[%clk 0:00:39]}  e5 {[%clk 0:00:06]} 27. Re1 {[%clk 0:00:28]}  Qc4 {[%clk 0:00:04]} 28. Qxe5+ {[%clk 0:00:26]}  Kg8 {[%clk 0:00:04]} 29. Qg5 {[%clk 0:00:20]}  Ne2+ {[%clk 0:00:05]} 30. Kh2 {[%clk 0:00:19]}  Rxf2 {[%clk 0:00:04]} 31. Qxg6+ {[%clk 0:00:19]}  Kf8 {[%clk 0:00:05]} 32. Qh6+ {[%clk 0:00:19]}  Ke8 {[%clk 0:00:05]} 33. Qh8+ {[%clk 0:00:16]}  Kd7 {[%clk 0:00:05]} 34. Qe5 {[%clk 0:00:16]}  Bh3 {[%clk 0:00:04]} 35. Kxh3 {[%clk 0:00:16]}  Nf4+ {[%clk 0:00:05]} 36. Kg3 {[%clk 0:00:15]}  Re2 {[%clk 0:00:04]} 37. Rxe2 {[%clk 0:00:15]}  Nxe2+ {[%clk 0:00:04]} 38. Kf2 {[%clk 0:00:15]}  Qd4+ {[%clk 0:00:00]} 39. Qxd4 {[%clk 0:00:15]} 1-0


[Site "https://www.chess.com"]